lending/lending_fUSD_20240522
["ID","MTS","AMOUNT","RATE_DAILY","PERIOD"]
[327725884,1716384643303,-154.94429313,0.00030236,7]
[327725885,1716384643313,-1000.0,0.0003024,11]
[327725886,1716384643323,-151.37770386,0.00030254,7]
[327725887,1716384643334,-150.0,0.00030255,2]
[327725888,1716384643343,-1000.0,0.0003026,11]
[327725889,1716384643352,-150.0,0.00030264,2]
[327725890,1716384643365,-150.0,0.00030265,2]
[327725891,1716384643374,-150.0,0.00030274,2]
[327725893,1716384643383,-1000.0,0.0003028,11]
[327725894,1716384643392,-1000.0,0.000303,11]
[327725895,1716384643401,-275.68049958,0.000303,2]
[327725896,1716384643412,-150.0,0.00030303,2]
[327725897,1716384643421,-174.08949678,0.0003031,2]
[327725898,1716384643430,-168.06517558,0.0003031,2]
[327725899,1716384643440,-16929.11718599,0.0003031,2]
[327725900,1716384643449,-797.760601,0.0003031,2]
[327725901,1716384643459,-197.52167346,0.0003031,2]
[327725902,1716384643469,-10000.0,0.0003031,2]
[327725903,1716384643479,-1000.0,0.0003031,2]
[327725904,1716384643488,-1000.0,0.0003032,11]
[327725905,1716384643498,-1722.86761589,0.0003032,2]
[327725906,1716384643508,-150.0,0.00030326,2]
[327725907,1716384643518,-1000.0,0.0003034,11]
[327725908,1716384643527,-154.21988296,0.00030351,7]
[327725909,1716384643537,-1000.0,0.0003036,11]
[327725910,1716384643546,-1000.0,0.0003038,11]
[327725911,1716384643556,-800.0,0.00030384,2]
[327725912,1716384643566,-150.0,0.00030384,2]
[327725913,1716384643577,-150.0,0.00030391,2]
[327725914,1716384643587,-150.0,0.00030397,2]
[327725915,1716384643598,-7714.6467158,0.00030398,2]
[327725916,1716384643615,-788.4006737,0.00030398,2]
[327725917,1716384643625,-1735.5773188,0.00030398,2]
[327725918,1716384643635,-13436.2073604,0.00030398,2]
[327725919,1716384643643,-12939.9083634,0.00030398,2]
[327725920,1716384643653,-1565.2946698,0.00030398,2]
[327725921,1716384643663,-2156.7788357,0.00030398,2]
[327725922,1716384643673,-150.0,0.00030399,2]
[327725923,1716384643683,-10000.0,0.000304,4]
[327725924,1716384643693,-160.0,0.000304,3]
[327725925,1716384643702,-150.0,0.000304,3]
[327725926,1716384643712,-1000.0,0.000304,11]
[327725927,1716384643721,-1500.0,0.000304,3]
[327725928,1716384643731,-156.104361,0.000304,6]
[327725929,1716384643740,-208.16268875,0.00030406,2]
[327725930,1716384643750,-1684.2232575,0.00030406,2]
[327725931,1716384643761,-165.72518546,0.00030407,2]
[327725932,1716384643771,-185.49434675,0.00030409,4]
[327725933,1716384643781,-399412.10751389,0.0003041,9]
[327725934,1716384643809,-14673.56000001,0.0003041,9]
[327725935,1716384643821,-5182.01000001,0.0003041,9]
[327725936,1716384644009,-18734.04426776,0.0003041,9]
[327725937,1716384644020,-6612.08757872,0.0003041,9]
[327725938,1716384644031,-991.23771563,0.0003041,9]
[327725939,1716384644042,-1772.85890225,0.0003041,9]
[327725947,1716384644250,-1175.36402059,0.0003041,9]
[327725949,1716384644273,-3759.56144894,0.0003041,9]
[327725960,1716384644826,-2249.89058128,0.00018365,2]
[327725961,1716384644836,-419.0,0.00029569,5]
[327725962,1716384644846,-6195.45701366,0.0003041,9]
[327725963,1716384644859,-835.73009828,0.0003041,9]
[327725964,1716384644871,-354412.18098819,0.0003041,9]
[327725965,1716384644881,-501.51501857,0.0003041,6]
[327725966,1716384644891,-500.0,0.0003041,6]
[327725967,1716384644901,-625.53862055,0.0003041,6]
[327725968,1716384644910,-500.0,0.0003041,6]
[327725969,1716384644920,-2000.0,0.0003041,2]
[327725970,1716384644929,-506.99246674,0.0003041,6]
[327725971,1716384644939,-200.0,0.0003041,2]
[327725972,1716384644948,-507.19504345,0.0003041,6]
[327725973,1716384644958,-508.49011591,0.0003041,6]
[327725974,1716384644968,-513.51359978,0.0003041,6]
[327725975,1716384644977,-507.06219388,0.0003041,6]
[327725976,1716384644987,-504.38407334,0.0003041,6]
[327725977,1716384644996,-500.0,0.0003041,6]
[327725978,1716384645006,-515.7229637,0.0003041,6]
[327725979,1716384645016,-508.597432,0.0003041,6]
[327725980,1716384645025,-516.69376264,0.0003041,6]
[327725981,1716384645035,-512.06723283,0.0003041,6]
[327725982,1716384645044,-500.0,0.0003041,6]
[327725983,1716384645054,-500.0,0.0003041,6]
[327725984,1716384645064,-500.0,0.0003041,6]
[327725985,1716384645073,-500.0,0.0003041,6]
[327725986,1716384645083,-500.0,0.0003041,6]
[327725987,1716384645093,-500.0,0.0003041,6]
[327725988,1716384645103,-500.0,0.0003041,6]
[327725989,1716384645114,-500.0,0.0003041,6]
[327725990,1716384645124,-500.0,0.0003041,6]
[327725991,1716384645133,-451.5921311,0.0003041,6]
[327725992,1716384645144,-513.43389205,0.0003041,6]
[327725993,1716384645153,-503.7659496,0.0003041,6]
[327725994,1716384645162,-500.0,0.0003041,6]
[327725995,1716384645172,-511.49985675,0.0003041,6]
[327725996,1716384645182,-500.0,0.0003041,6]
[327725997,1716384645191,-500.0,0.0003041,6]
[327725998,1716384645201,-500.0,0.0003041,6]
[327725999,1716384645210,-500.0,0.0003041,6]
[327726000,1716384645220,-500.0,0.0003041,6]
[327726001,1716384645230,-519.13214387,0.0003041,6]
[327726002,1716384645239,-176.87838362,0.0003041,6]
[327726003,1716384645272,-323.12161638,0.0003041,6]
[327726004,1716384645282,-243.44641404,0.0003041,6]
[327726033,1716384646733,-372.44089347,0.00029568,2]
[327726037,1716384646743,-326.03857362,0.00029568,2]
[327726039,1716384646753,-155.0,0.00029899,2]
[327726041,1716384646763,-155.0,0.00029899,2]
[327726043,1716384646772,-371.82376072,0.0002999,2]
[327726064,1716384824171,9800.0,0.00013,2]
[327726065,1716384824199,9800.0,0.00013,2]
[327726066,1716384835313,524.28180258,9e-05,2]
[327726067,1716384867593,347.52,0.00010959,2]
[327726068,1716384869880,10469.64371101,6.94e-05,2]
[327726069,1716384875503,409.74863585,0.0001,2]
[327726070,1716384879634,180.19382766,0.0001,2]
[327726071,1716384904645,150.5,0.00019715,15]
[327726072,1716384905279,150.5,0.00019705,15]
[327726073,1716384906650,150.5,0.00019695,15]
[327726074,1716384968236,633.0,0.00019715,15]
[327726075,1716384969146,633.0,0.00019705,15]
[327726076,1716384969954,633.0,0.00019695,15]
[327726077,1716384976151,1076.0,0.0003,120]
[327726079,1716385147332,443.0,0.0001959,15]
[327726080,1716385148562,443.0,0.0001958,15]
[327726081,1716385149142,443.0,0.0001957,15]
[327726082,1716385180535,150.5,0.0001959,15]
[327726083,1716385181168,150.5,0.0001958,15]
[327726084,1716385183061,150.5,0.0001957,15]
[327726085,1716385222097,175.15,0.00010656,2]
[327726086,1716385228650,167.5,0.00010629,2]
[327726087,1716385265398,310.0,0.0001959,15]
[327726088,1716385266188,310.0,0.0001958,15]
[327726089,1716385266922,310.0,0.0001957,15]
[327726090,1716385281674,2548.44455282,7.972e-05,2]
[327726091,1716385299895,1195.19114104,7.972e-05,2]
[327726092,1716385384878,288.0,0.0001959,15]
[327726093,1716385400596,217.0,0.0001959,15]
[327726094,1716385401832,217.0,0.0001958,15]
[327726095,1716385403214,217.0,0.0001957,15]
[327726096,1716385412633,-751.32226351,0.00012424,2]
[327726097,1716385412656,-2919.23173604,0.00012424,2]
[327726098,1716385412678,-1978.438858,0.00012425,2]
[327726099,1716385412699,-1745.71576553,0.00012487,2]
[327726100,1716385412719,-534.78834702,0.00012488,2]
[327726101,1716385412745,-2813.98016787,0.00012488,2]
[327726102,1716385412766,-452.09796917,0.00012489,2]
[327726103,1716385412787,-267.89346007,0.0001249,2]
[327726104,1716385412809,-1410.45488818,0.00012491,2]
[327726105,1716385412834,-150.0,0.00012655,2]
[327726106,1716385412856,-2925.1475,0.00012899,2]
[327726107,1716385412879,-3135.1335,0.00012899,2]
[327726108,1716385412900,-176.59051275,0.000129,2]
[327726109,1716385412923,-182.24211781,0.000129,2]
[327726110,1716385412945,-240.82636483,0.000129,2]
[327726111,1716385412967,-185.11585315,0.000129,2]
[327726112,1716385412992,-326.11337643,0.000129,2]
[327726113,1716385413013,-3034.0104,0.00012989,2]
[327726114,1716385413035,-499.99,0.00012989,2]
[327726115,1716385413059,-151.25,0.0001299,2]
[327726116,1716385413082,-151.25,0.0001299,2]
[327726117,1716385413104,-151.25,0.0001299,2]
[327726118,1716385413126,-151.25,0.0001299,2]
[327726119,1716385413150,-151.25,0.0001299,2]
[327726120,1716385413172,-151.25,0.0001299,2]
[327726121,1716385413194,-151.25,0.0001299,2]
[327726122,1716385413215,-246.55231067,0.0001299,2]
[327726123,1716385413240,-246.55231067,0.0001299,2]
[327726124,1716385413261,-246.55231067,0.0001299,2]
[327726125,1716385413283,-19821.76737562,0.00012991,2]
[327726126,1716385413305,-326.03857362,0.00012992,2]
[327726127,1716385413326,-882.41621094,0.00012997,2]
[327726128,1716385413347,-446.8178927,0.00012997,2]
[327726129,1716385413368,-155.45896805,0.00012998,2]
[327726130,1716385413389,-155.96690999,0.00012998,2]
[327726131,1716385413410,-157.82420216,0.00012998,2]
[327726132,1716385413432,-155.79798778,0.00012998,2]
[327726133,1716385413454,-271.53784341,0.00012998,2]
[327726134,1716385413474,-1254.98401423,0.00012998,2]
[327726135,1716385413502,-155.0,0.00012998,2]
[327726136,1716385413523,-155.5415253,0.00012998,2]
[327726137,1716385413545,-155.0,0.00012998,2]
[327726138,1716385413567,-155.0,0.00012998,2]
[327726139,1716385413588,-306.53932748,0.00012998,2]
[327726140,1716385413609,-468.08328228,0.00012998,2]
[327726141,1716385413630,-293.01514852,0.00012998,2]
[327726142,1716385413652,-726.23771159,0.00012998,2]
[327726143,1716385413675,-659.69401485,0.00012998,2]
[327726144,1716385413695,-175.91087018,0.00012998,2]
[327726145,1716385413721,-483.2796384,0.00012998,2]
[327726146,1716385413746,-2187.62154477,0.00012998,2]
[327726147,1716385413769,-155.50433289,0.00012998,2]
[327726148,1716385413791,-319.39260741,0.00012998,2]
[327726149,1716385413813,-365.790354,0.00012998,2]
[327726150,1716385413836,-275.50152538,0.00012998,2]
[327726151,1716385413859,-321.34456172,0.00012998,2]
[327726152,1716385413880,-1380.55997718,0.00012998,2]
[327726153,1716385413903,-22104.87358718,0.00012999,2]
[327726154,1716385428977,452.09796917,0.00011567,2]
[327726155,1716385429142,398.04732678,0.00011697,2]
[327726156,1716385445009,452.09796917,0.00011567,2]
[327726157,1716385462843,452.09796917,0.00011567,2]
[327726158,1716385476998,452.09796917,0.00011567,2]
[327726159,1716385500985,452.09796917,0.00011567,2]
[327726160,1716385518988,232.63191071,0.00011567,2]
[327726161,1716385546681,152.0,0.00019685,15]
[327726162,1716385548190,152.0,0.00019675,15]
[327726163,1716385550220,152.0,0.00019665,15]
[327726164,1716385617084,-155.0,0.0002,4]
[327726165,1716385626099,150.5,0.00019685,15]
[327726166,1716385626699,150.5,0.00019675,15]
[327726167,1716385628353,150.5,0.00019665,15]
[327726168,1716385681429,311.57,0.00010936,2]
[327726169,1716385721163,175.15,0.00010014,2]
[327726170,1716385725358,-2919.23173604,0.00012498,2]
[327726171,1716385725380,-302.80861373,0.00012499,2]
[327726172,1716385725401,-1163.81051035,0.00012499,2]
[327726173,1716385725423,-548.02537877,0.000125,2]
[327726174,1716385725458,-267.89346007,0.00012599,2]
[327726175,1716385725503,-300.0,0.000126,4]
[327726176,1716385725551,-150.0,0.00012698,2]
[327726177,1716385725596,-600.0,0.000127,4]
[327726178,1716385725637,-900.0,0.000128,4]
[327726179,1716385725677,-192.66109184,0.000129,2]
[327726180,1716385725716,-4091.81058775,0.000129,2]
[327726181,1716385725756,-1200.0,0.000129,4]
[327726182,1716385725792,-192.66109183,0.00012912,2]
[327726183,1716385725829,-192.66109183,0.00012924,2]
[327726184,1716385725864,-150.0,0.00012932,2]
[327726185,1716385725901,-192.66109183,0.00012936,2]
[327726186,1716385725938,-192.66109183,0.00012948,2]
[327726187,1716385725976,-6164.42169924,0.00012997,2]
[327726188,1716385726014,-155.45896805,0.00012997,2]
[327726189,1716385726052,-2187.62154477,0.00012997,2]
[327726190,1716385726089,-3148.28246,0.00012998,2]
[327726191,1716385726128,-174787.32958207,0.00012999,2]
[327726194,1716385752083,150.5,0.00019655,15]
[327726195,1716385752918,150.5,0.00019645,15]
[327726196,1716385753639,150.5,0.00019635,15]
[327726217,1716385832826,-353.71092235,0.00012494,2]
[327726218,1716385832840,-1987.87577013,0.00012494,2]
[327726219,1716385832850,-180.12422987,0.00012495,2]
[327726220,1716385832861,-2633.855938,0.00012495,2]
[327726221,1716385832870,-969.84209196,0.00012496,2]
[327726223,1716385832879,-900.0,0.000126,4]
[327726224,1716385832889,-1900.0,0.000127,4]
[327726226,1716385832899,-2900.0,0.000128,4]
[327726227,1716385832908,-3580.33426429,0.000129,2]
[327726228,1716385832918,-3900.0,0.000129,4]
[327726229,1716385832927,-151.25,0.0001299,2]
[327726230,1716385832937,-151.25,0.0001299,2]
[327726231,1716385832946,-151.25,0.0001299,2]
[327726232,1716385832955,-151.25,0.0001299,2]
[327726233,1716385832964,-359.63972937,0.00012998,2]
[327726234,1716385832974,-156.11916462,0.00012998,2]
[327726235,1716385832983,-15544.63486817,0.00012999,2]
[327726236,1716385832992,-285044.02227302,0.00013,2]
[327726237,1716385833004,-6858.02839561,0.00013,2]
[327726238,1716385833016,-553.8864003,0.00013,2]
[327726239,1716385833027,-46181.69906502,0.00013,2]
[327726240,1716385833039,-347.775,0.00013,2]
[327726241,1716385833068,-3662.86615132,0.00013,2]
[327726261,1716385838631,-698.49,0.00012999,2]
[327726262,1716385838642,-1955487.49851965,0.00013,2]
[327726263,1716385838651,-1024833.57053335,0.00013,2]
[327726264,1716385838661,-17507.40035875,0.00013,2]
[327726265,1716385838670,-152.08594198,0.000131,2]
[327726266,1716385838679,-797.760601,0.000131,2]
[327726267,1716385838689,-197.87473694,0.000131,2]
[327726268,1716385838698,-311.57,0.000132,2]
[327726269,1716385838708,-168.45,0.00013233,2]
[327726270,1716385838717,-499.99,0.00013699,2]
[327726271,1716385838728,-200.0,0.00013699,2]
[327726272,1716385838737,-250.0,0.00013808,2]
[327726273,1716385838746,-210.0,0.00013968,2]
[327726274,1716385838755,-156.13,0.00013973,2]
[327726275,1716385838765,-1414.11,0.00014082,2]
[327726276,1716385838775,-773.03,0.00014082,2]
[327726277,1716385838785,-1000.0,0.00014565,2]
[327726278,1716385838796,-172.96240639,0.000148,2]
[327726279,1716385838807,-155.0,0.00015,2]
[327726280,1716385838816,-8092.39759761,0.00015,2]
[327726281,1716385838826,-225.26857882,0.00015,2]
[327726282,1716385838835,-454.46694579,0.00015,2]
[327726283,1716385838846,-171.94,0.00015283,2]
[327726284,1716385838855,-293.0,0.00015365,2]
[327726285,1716385838865,-311.57,0.00015464,2]
[327726286,1716385838875,-737.0,0.000155,2]
[327726287,1716385838884,-3580.33426428,0.00015544,2]
[327726288,1716385838894,-2160.0,0.000156,2]
[327726289,1716385838904,-773.03,0.00015842,2]
[327726290,1716385838913,-171.94,0.00016093,2]
[327726291,1716385838923,-1000.0,0.00016385,2]
[327726292,1716385838932,-179.05,0.00016712,2]
[327726293,1716385838942,-1414.11,0.00016821,2]
[327726294,1716385838951,-174.08949678,0.000169,2]
[327726295,1716385838960,-277.0,0.00016901,2]
[327726296,1716385838970,-171.94,0.00016904,2]
[327726297,1716385838979,-2424.98634334,0.00017,2]
[327726298,1716385838988,-800.0,0.00017123,2]
[327726299,1716385838998,-3738.1,0.00017225,2]
[327726300,1716385839007,-20821.89,0.00017259,2]
[327726302,1716385839016,-7454.65,0.0001729,2]
[327726303,1716385839024,-1232.47,0.0001745,2]
[327726304,1716385839034,-250.0,0.00017495,2]
[327726305,1716385839045,-773.03,0.00017602,2]
[327726306,1716385839055,-171.94,0.00017715,2]
[327726307,1716385839064,-311.57,0.00017727,2]
[327726308,1716385839075,-3580.33426428,0.00018187,2]
[327726309,1716385839084,-1000.0,0.00018206,2]
[327726310,1716385839095,-171.94,0.00018526,2]
[327726311,1716385839105,-536.62,0.00018542,2]
[327726312,1716385839114,-536.62,0.00018547,2]
[327726313,1716385839125,-536.62,0.00018552,2]
[327726314,1716385839134,-536.62,0.00018557,2]
[327726315,1716385839144,-536.62,0.00018562,2]
[327726316,1716385839153,-536.62,0.00018567,2]
[327726317,1716385839163,-536.62,0.00018572,2]
[327726318,1716385839172,-536.62,0.00018577,2]
[327726319,1716385839182,-536.62,0.00018581,2]
[327726320,1716385839191,-536.62,0.00018586,2]
[327726321,1716385839201,-536.62,0.00018591,2]
[327726322,1716385839210,-536.62,0.00018596,2]
[327726323,1716385839220,-536.62,0.00018601,2]
[327726324,1716385839230,-536.62,0.00018606,2]
[327726325,1716385839240,-536.62,0.00018611,2]
[327726326,1716385839250,-536.62,0.00018616,2]
[327726327,1716385839261,-536.62,0.0001862,2]
[327726328,1716385839270,-536.62,0.00018625,2]
[327726329,1716385839280,-536.62,0.0001863,2]
[327726330,1716385839289,-536.62,0.00018635,2]
[327726331,1716385839299,-627.99,0.0001876,2]
[327726332,1716385839309,-1615.0510207,0.00019,2]
[327726333,1716385839318,-410.39631753,0.00019,2]
[327726334,1716385839328,-319.1459787,0.00019178,2]
[327726335,1716385839338,-709.14,0.000192,2]
[327726336,1716385839348,-765.06,0.000192,2]
[327726337,1716385839358,-185.11585315,0.00019343,2]
[327726338,1716385839368,-171.33,0.00019348,2]
[327726339,1716385839378,-773.03,0.00019362,2]
[327726340,1716385839388,-1414.11,0.00019561,2]
[327726341,1716385839399,-1043.83643081,0.00019635,2]
[327726342,1716385839409,-1039.40241281,0.00019635,2]
[327726343,1716385839419,-500.0,0.00019635,2]
[327726344,1716385839428,-37481.60438299,0.00019635,2]
[327726345,1716385839439,-155.0,0.00019635,2]
[327726346,1716385839449,-155.0,0.00019695,2]
[327726347,1716385839459,-173.49313269,0.00019695,2]
[327726348,1716385839469,-346.28428884,0.00019695,2]
[327726349,1716385839479,-769.164027,0.00019726,2]
[327726350,1716385839489,-150.49,0.00019919,2]
[327726351,1716385839499,-311.57,0.00019991,2]
[327726352,1716385839508,-155.0,0.0002,2]
[327726353,1716385839519,-155.13197663,0.0002,2]
[327726354,1716385839528,-5186.20094472,0.0002,2]
[327726355,1716385839538,-401.29778511,0.0002,2]
[327726356,1716385839551,-1000.0,0.00020026,2]
[327726357,1716385839562,-171.33,0.00020147,2]
[327726358,1716385839571,-2774.638,0.00020244,2]
[327726359,1716385839581,-769.164027,0.00020548,2]
[327726360,1716385839592,-171.33,0.00020945,2]
[327726361,1716385839602,-974.0,0.00020968,2]
[327726362,1716385839612,-2161.0,0.00020968,2]
[327726363,1716385839622,-2161.0,0.00020968,2]
[327726364,1716385839632,-1263.0,0.00020968,2]
[327726365,1716385839643,-1643.0,0.00020968,2]
[327726366,1716385839653,-1225.0,0.00020968,2]
[327726367,1716385839663,-639.439,0.00020968,2]
[327726368,1716385839673,-445.0,0.00020968,2]
[327726369,1716385839683,-439.0,0.00020968,2]
[327726370,1716385839693,-809.0,0.00020968,2]
[327726371,1716385839712,-1649.0,0.00020968,2]
[327726372,1716385839723,-213.0,0.00020968,2]
[327726373,1716385839733,-2378.0,0.00020968,2]
[327726374,1716385839744,-215.0,0.00020968,2]
[327726375,1716385839754,-773.03,0.00021122,2]
[327726376,1716385839764,-150.49,0.00021289,2]
[327726377,1716385839774,-769.164027,0.0002137,2]
[327726378,1716385839785,-171.33,0.00021743,2]
[327726379,1716385839795,-1000.0,0.00021847,2]
[327726380,1716385839806,-500.0,0.000219,2]
[327726381,1716385839816,-166.21,0.00021918,2]
[327726382,1716385839826,-202.79,0.00021918,2]
[327726383,1716385839838,-163.86,0.00021918,2]
[327726384,1716385839847,-29239.17512142,0.00022,2]
[327726385,1716385839857,-787.61802861,0.00022,2]
[327726386,1716385839866,-154.9442931,0.00022001,2]
[327726387,1716385839876,-154.9442931,0.00022023,2]
[327726388,1716385839886,-154.49054119,0.00022049,2]
[327726389,1716385839896,-155.99574069,0.00022086,2]
[327726390,1716385839907,-769.164027,0.00022192,2]
[327726391,1716385839916,-155.99574069,0.00022201,2]
[327726392,1716385839926,-159.3699911,0.00022208,2]
[327726393,1716385839936,-154.9442931,0.00022222,2]
[327726394,1716385839947,-155.86954962,0.00022235,2]
[327726395,1716385839957,-311.57,0.00022255,2]
[327726396,1716385839967,-154.9442931,0.00022382,2]
[327726397,1716385839977,-765.06,0.000224,2]
[327726398,1716385839987,-166.29644051,0.00022458,2]
[327726399,1716385839998,-7098.03342488,0.000225,2]
[327726400,1716385840010,-171.33,0.00022542,2]
[327726401,1716385840021,-155.86954962,0.00022576,2]
[327726402,1716385840033,-170.14762416,0.00022612,2]
[327726403,1716385840043,-155.99574069,0.00022639,2]
[327726404,1716385840054,-155.99574069,0.00022641,2]
[327726405,1716385840064,-170.14762416,0.00022717,2]
[327726406,1716385840075,-155.99574069,0.00022746,2]
[327726407,1716385840086,-170.14762416,0.00022766,2]
[327726408,1716385840097,-170.14762416,0.00022825,2]
[327726409,1716385840107,-170.14762416,0.00022849,2]
[327726410,1716385840116,-5511.49091993,0.00023,2]
[327726411,1716385840125,-750.0,0.00023,2]
[327726412,1716385840135,-769.164027,0.00023014,2]
[327726413,1716385840146,-154.9442931,0.00023071,2]
[327726414,1716385840155,-709.14,0.000232,2]
[327726415,1716385840166,-154.21988295,0.00023208,2]
[327726416,1716385840176,-184.2797168,0.00023228,2]
[327726417,1716385840186,-166.66666666,0.00023379,2]
[327726418,1716385840197,-2004.82313321,0.000234,2]
[327726419,1716385840207,-154.9442931,0.00023451,2]
[327726420,1716385840217,-1200.58933735,0.00023457,2]
[327726421,1716385840228,-159.3699911,0.00023523,2]
[327726422,1716385840238,-151.25,0.00023589,2]
[327726423,1716385840248,-151.25,0.0002359,2]
[327726424,1716385840408,-156.52590867,0.00023599,10]
[327726425,1716385840420,-569013.37550576,0.00023599,9]
[327726426,1716385840435,-186303.5068643,0.00023599,9]
[327726427,1716385840447,-335304.0,0.000236,2]
[327726428,1716385840457,-155.99574069,0.00023664,2]
[327726429,1716385840468,-154.9442931,0.00023688,2]
[327726430,1716385840479,-154.49054119,0.00023729,2]
[327726431,1716385840489,-152.08594196,0.00023764,2]
[327726432,1716385840498,-797.76060099,0.00023764,2]
[327726433,1716385840508,-197.87473693,0.00023764,2]
[327726434,1716385840518,-151.8895225,0.00023767,2]
[327726435,1716385840528,-155.86954962,0.00023791,2]
[327726436,1716385840538,-155.86954962,0.00023811,2]
[327726437,1716385840548,-769.164027,0.00023836,2]
[327726438,1716385840558,-1500.0,0.000239,8]
[327726439,1716385840568,-4800.0,0.000239,8]
[327726440,1716385840577,-1080.872954,0.00023928,2]
[327726441,1716385840589,-183.896947,0.00023928,2]
[327726442,1716385840599,-186.015969,0.00023928,2]
[327726443,1716385840609,-672.839597,0.00023928,2]
[327726444,1716385840620,-235.507659,0.00023928,2]
[327726445,1716385840633,-378.129134,0.00023928,2]
[327726447,1716385840642,-974.0,0.00023968,2]
[327726449,1716385840653,-2161.0,0.00023968,2]
[327726451,1716385840663,-1263.0,0.00023968,2]
[327726453,1716385840674,-1643.0,0.00023968,2]
[327726455,1716385840683,-1225.0,0.00023968,2]
[327726456,1716385840693,-613.0,0.00023968,2]
[327726457,1716385840704,-1649.0,0.00023968,2]
[327726458,1716385840715,-199.0,0.00023968,2]
[327726459,1716385840725,-215.0,0.00023968,2]
[327726460,1716385840736,-159.3699911,0.00023969,2]
[327726461,1716385840747,-155.99574069,0.0002397,2]
[327726462,1716385840758,-547.45858614,0.00023992,2]
[327726463,1716385840768,-433.05694752,0.00024,2]
[327726464,1716385840778,-7250.31160767,0.00024,3]
[327726465,1716385840788,-155.99574069,0.00024029,2]
[327726466,1716385840797,-1035.93410141,0.000241,2]
[327726467,1716385840809,-151.57874297,0.00024101,2]
[327726468,1716385840819,-170.14762416,0.0002412,2]
[327726469,1716385840829,-154.9442931,0.00024131,2]
[327726470,1716385840839,-394.7284582,0.0002421,2]
[327726471,1716385840848,-166.29644053,0.00024211,2]
[327726472,1716385840858,-1080.872954,0.00024227,2]
[327726473,1716385840868,-672.839597,0.00024227,2]
[327726474,1716385840878,-378.129134,0.00024227,2]
[327726475,1716385840888,-180.0,0.0002423,2]
[327726476,1716385840897,-371.31651285,0.0002425,2]
[327726477,1716385840907,-155.0,0.00024255,2]
[327726478,1716385840916,-154.49054119,0.00024379,2]
[327726479,1716385840925,-154.9442931,0.0002439,2]
[327726480,1716385840935,-1232.47,0.00024429,2]
[327726481,1716385840944,-311.57,0.00024519,2]
[327726482,1716385840953,-1080.872954,0.00024526,2]
[327726483,1716385840963,-672.839597,0.00024526,2]
[327726484,1716385840972,-378.129134,0.00024526,2]
[327726485,1716385840982,-170.14762416,0.00024556,2]
[327726486,1716385840991,-154.9442931,0.00024641,2]
[327726487,1716385841000,-250.0,0.00024655,3]
[327726488,1716385841010,-769.164027,0.00024658,2]
[327726489,1716385841019,-250.0,0.00024658,2]
[327726490,1716385841029,-500.0,0.000247,2]
[327726491,1716385841039,-800.0,0.00024767,2]
[327726492,1716385841048,-155.99574069,0.00024768,2]
[327726493,1716385841057,-155.86954962,0.00024785,2]
[327726494,1716385841067,-1080.872954,0.00024825,2]
[327726495,1716385841076,-672.839597,0.00024825,2]
[327726496,1716385841085,-378.129134,0.00024825,2]
[327726497,1716385841097,-170.14762416,0.00024881,2]
[327726498,1716385841106,-3666.87154339,0.000249,2]
[327726499,1716385841116,-765.06,0.000249,2]
[327726500,1716385841126,-5000.0,0.000249,2]
[327726501,1716385841135,-300.0,0.000249,9]
[327726502,1716385841144,-900.0,0.000249,9]
[327726503,1716385841154,-155.86954962,0.00024934,2]
[327726504,1716385841163,-155.86954962,0.00024987,2]
[327726505,1716385841173,-151.25,0.0002499,2]
[327726506,1716385841184,-151.25,0.0002499,2]